bitfinex/quotes_ETHUSD_20241106
["timestamp","ask_amount","ask_price","bid_price","bid_amount"]
[1730895907410,12.38,2643.3,2643.2,0.01]
[1730895907689,8.87042699,2644.0,2643.2,0.01]
[1730895907690,3.78272,2643.6,2643.2,0.01]
[1730895908285,3.78265,2643.7,2643.2,0.01]
[1730895908595,3.78275,2643.6,2643.2,0.01]
[1730895909117,3.78254,2643.8,2643.2,3.79326]
[1730895909326,4.26932699,2643.7,2643.3,0.7763]
[1730895909624,3.78258,2643.7,2643.3,0.7763]
[1730895911129,3.78265,2643.7,2643.3,0.7763]
[1730895911417,3.78239,2643.9,2643.3,0.7763]
[1730895911418,7.56477,2643.9,2643.4,0.01]
[1730895911620,3.78238,2643.9,2643.4,0.01]
[1730895911928,3.7826,2643.7,2643.4,0.01]
[1730895912131,7.56531,2643.7,2643.4,0.01]
[1730895912423,3.78239,2643.9,2643.4,0.01]
[1730895912976,3.78238,2643.9,2643.4,0.01]
[1730895913202,3.78245,2643.8,2643.4,0.01]
[1730895913424,7.56479,2643.9,2643.4,0.01]
[1730895913633,3.7825,2643.8,2643.4,0.01]
[1730895915191,4.54175,2643.8,2643.4,0.01]
[1730895915405,3.7825,2643.8,2643.3,4.55944]
[1730895915606,3.7825,2643.8,2643.4,0.01]
[1730895915918,3.78293,2643.5,2643.2,0.01]
[1730895916224,4.26932699,2643.7,2643.2,0.01]
[1730895916379,3.78293,2643.5,2643.1,0.8229]
[1730895916579,3.78322,2643.3,2642.9,0.8381]
[1730895917090,3.78322,2643.3,2643.1,0.01]
[1730895917416,3.78296,2643.5,2643.1,0.01]
[1730895917785,3.78329,2643.3,2642.9,0.8381]
[1730895917980,3.78329,2643.3,2643.1,0.01]
[1730895918782,3.78329,2643.3,2642.9,0.8381]
[1730895919022,3.78329,2643.3,2643.1,0.01]
[1730895920585,3.78329,2643.3,2642.9,0.8381]
[1730895920797,3.78329,2643.3,2643.1,0.01]
[1730895920995,3.78329,2643.3,2642.9,0.8281]
[1730895921329,3.7835,2643.1,2642.9,0.01]
[1730895921487,4.161499,2643.3,2642.9,0.01]
[1730895921687,3.78317,2643.3,2642.9,3.7937]
[1730895922013,3.78288,2643.5,2642.9,3.7937]
[1730895922014,3.78302,2643.4,2642.9,3.7937]
[1730895922332,3.78342,2643.2,2642.9,0.01]
[1730895922628,3.78345,2643.1,2642.9,0.01]
[1730895922999,3.7833,2643.2,2642.9,0.01]
[1730895923412,3.7833,2643.2,2642.7,3.79392]
[1730895923631,3.7831,2643.4,2642.8,0.01]
[1730895923787,3.7831,2643.4,2642.9,3.79364]
[1730895924097,3.78315,2643.3,2642.9,3.79364]
[1730895924488,12.38,2643.7,2643.2,3.78329]
[1730895924720,16.16266,2643.7,2643.3,0.01]
[1730895924938,12.38,2643.7,2643.3,3.79311]
[1730895925090,16.1626,2643.7,2643.3,3.79311]
[1730895925429,3.783,2643.4,2643.3,0.01]
[1730895925597,3.78319,2643.3,2643.1,0.01]
[1730895926631,3.78302,2643.4,2643.1,0.01]
[1730895927294,3.78302,2643.4,2643.0,0.7563]
[1730895927607,3.78339,2643.2,2642.9,0.01]
[1730895928114,3.78316,2643.3,2643.1,0.01]
[1730895928506,3.78308,2643.4,2643.1,0.01]
[1730895929338,13.1403,2643.7,2643.2,0.7525]
[1730895929652,3.78272,2643.6,2643.2,0.7525]
[1730895929933,3.78302,2643.4,2643.2,0.7525]
[1730895930089,3.78272,2643.6,2643.2,0.7525]
[1730895930298,3.78278,2643.6,2643.2,0.7525]
[1730895930505,3.78262,2643.7,2643.2,5.368693]
[1730895930737,7.56533,2643.7,2643.2,4.53575]
[1730895930889,9.51863519,2643.8,2643.2,0.7525]
[1730895931089,7.56704,2643.1,2642.9,0.01]
[1730895931308,3.78351,2643.1,2642.7,0.02]
[1730895931531,3.7836,2643.0,2642.7,0.02]
[1730895931690,3.78338,2643.2,2642.7,0.02]
[1730895932298,3.78338,2643.2,2642.7,3.804]
[1730895933198,3.78325,2643.3,2642.8,3.78379]
[1730895933395,3.78301,2643.4,2642.8,3.78379]
[1730895933595,3.78301,2643.4,2642.9,0.01]
[1730895933838,3.78322,2643.3,2642.9,0.01]
[1730895934192,3.7835,2643.1,2642.7,0.02]
[1730895934391,3.78358,2643.0,2642.7,0.02]
[1730895935133,3.7835,2643.1,2642.7,0.02]
[1730895935502,3.78366,2643.0,2642.7,0.02]
[1730895936141,3.7835,2643.1,2642.7,0.02]
[1730895937037,3.78314,2643.3,2642.8,3.78382]
[1730895937244,3.78302,2643.4,2642.9,3.79363]
[1730895937448,3.78302,2643.4,2643.0,0.8045]
[1730895937612,16.16297,2643.5,2643.0,4.58806]
[1730895937930,3.78307,2643.4,2643.0,0.8045]
[1730895938494,3.78307,2643.4,2643.0,4.58807]
[1730895938698,12.38,2643.5,2643.0,4.58807]
[1730895938895,16.16289,2643.5,2643.0,4.58807]
[1730895939249,0.753,2643.6,2643.0,0.8045]
[1730895939539,0.7673,2642.8,2642.0,0.01]
[1730895939746,10.58429,2642.5,2641.7,3.80541]
[1730895939897,3.81,2642.6,2642.2,0.02]
[1730895940103,3.81,2642.6,2642.4,0.01]
[1730895940340,3.78381,2642.9,2642.4,0.02]
[1730895940512,3.78381,2642.9,2642.4,3.80442]
[1730895940720,3.78388,2642.8,2642.4,0.02]
[1730895940910,3.78395,2642.8,2642.4,0.02]
[1730895941328,3.78368,2643.0,2642.4,0.481459]
[1730895941536,3.78368,2643.0,2642.6,0.01]
[1730895941712,3.78337,2643.2,2642.7,0.7901]
[1730895942310,3.78337,2643.2,2642.8,0.01]
[1730895942515,3.78337,2643.2,2642.7,0.8001]
[1730895942516,3.78343,2643.1,2642.7,0.8001]
[1730895942714,3.78358,2643.0,2642.7,0.8001]
[1730895942931,3.78343,2643.1,2642.7,0.8001]
[1730895943739,3.78362,2643.0,2642.7,0.8001]
[1730895946029,3.78401,2642.7,2642.5,0.01]
[1730895946199,3.7838,2642.9,2642.5,0.01]
[1730895946673,7.56761,2642.9,2642.5,0.01]
[1730895946874,3.7838,2642.9,2642.5,0.01]
[1730895947035,3.78388,2642.8,2642.5,0.01]
[1730895948462,3.7838,2642.9,2642.5,0.01]
[1730895948980,3.78351,2643.1,2642.6,0.01]
[1730895949275,3.78351,2643.1,2642.8,0.01]
[1730895950637,3.78354,2643.1,2642.8,0.01]
[1730895951684,3.78366,2643.0,2642.6,0.01]
[1730895951865,3.78352,2643.1,2642.6,0.01]
[1730895952269,3.78352,2643.1,2642.7,0.7976]
[1730895952632,14.09453519,2643.4,2642.8,3.78385]
[1730895952633,3.78314,2643.3,2642.8,3.78385]
[1730895952883,3.78345,2643.1,2642.7,0.8076]
[1730895953063,3.78329,2643.2,2642.7,0.8076]
[1730895953244,3.78329,2643.2,2642.7,5.430161]
[1730895953446,3.78291,2643.5,2642.9,0.791]
[1730895953672,3.78303,2643.4,2642.9,4.57463]
[1730895954675,3.78303,2643.4,2642.9,0.791]
[1730895954880,3.78303,2643.4,2643.1,0.01]
[1730895955460,3.78303,2643.4,2643.1,0.02]
[1730895955847,3.78281,2643.6,2643.1,3.80343]
[1730895956095,7.58252,2643.8,2643.3,0.7716]
[1730895956255,3.78272,2643.6,2643.3,0.7816]
[1730895956653,3.78292,2643.5,2643.3,0.7816]
[1730895956991,4.539484,2643.5,2643.3,0.7816]
[1730895957286,3.78292,2643.5,2643.3,0.7816]
[1730895959796,3.78313,2643.4,2643.1,0.8205]
[1730895959999,3.78292,2643.5,2643.1,0.8305]
[1730895960201,3.78292,2643.5,2643.1,4.61393]
[1730895960533,7.56589,2643.5,2643.1,0.8305]
[1730895960690,3.78292,2643.5,2643.1,0.8305]
[1730895961118,3.78292,2643.5,2643.1,4.61392]
[1730895961502,3.78292,2643.5,2643.1,0.8305]
[1730895961690,3.78311,2643.4,2643.1,0.8305]
[1730895961891,3.78292,2643.5,2643.1,4.6139]
[1730895962127,7.56537,2643.7,2643.2,3.78326]
[1730895962428,0.835067,2643.7,2643.1,0.8305]
[1730895962598,3.783,2643.4,2643.1,0.8205]
[1730895962809,3.783,2643.4,2643.1,0.8305]
[1730895963037,3.78243,2643.8,2643.4,0.01]
[1730895963395,0.7853,2643.9,2643.4,0.01]
[1730895963624,0.456753,2643.8,2643.4,0.01]
[1730895963790,4.239253,2643.8,2643.4,0.01]
[1730895964334,3.7825,2643.8,2643.4,0.01]
[1730895964635,13.2044,2644.1,2643.5,0.01]
[1730895964807,3.78256,2643.8,2643.5,0.01]
[1730895965448,7.5651,2643.8,2643.5,0.01]
[1730895965755,3.78254,2643.8,2643.5,0.01]
[1730895966134,3.78251,2643.8,2643.5,0.01]
[1730895967736,3.78251,2643.8,2643.3,3.80314]
[1730895967937,3.78251,2643.8,2643.5,0.01]
[1730895968845,3.78251,2643.8,2643.4,3.78294]
[1730895968846,0.756475,2643.8,2643.4,3.78294]
[1730895969178,13.2044,2644.1,2643.5,3.78285]
[1730895969358,3.78236,2643.9,2643.4,3.78294]
[1730895969565,12.38,2644.1,2643.5,0.8156]
[1730895969764,12.38,2644.1,2643.7,3.78247]
[1730895969964,3.18805213,2644.5,2644.0,3.78206]
[1730895969965,0.55,2644.5,2644.0,3.78206]
[1730895970137,0.55,2644.5,2644.1,3.78198]
[1730895970335,0.55,2644.5,2644.0,3.78203]
[1730895970542,4.79435597,2644.5,2644.0,3.78203]
[1730895970767,0.55,2644.3,2643.8,0.8156]
[1730895970950,0.55,2644.3,2643.9,3.78215]
[1730895971274,0.55,2644.4,2644.1,3.78198]
[1730895971484,4.24436597,2644.5,2643.9,7.56436]
[1730895971682,0.55,2644.3,2643.9,3.78215]
[1730895971873,0.55,2644.3,2644.0,3.78212]
[1730895972046,0.55,2644.3,2644.1,3.782]
[1730895972232,0.55,2644.4,2644.0,3.78214]
[1730895972438,4.33145,2644.5,2644.0,3.78214]
[1730895973377,0.55,2644.5,2643.8,0.8156]
[1730895973610,0.55,2644.5,2644.0,3.78204]
[1730895973812,8.36741,2644.6,2644.0,3.78204]
[1730895973978,8.826011,2644.6,2644.0,3.78204]
[1730895974195,5.044611,2644.6,2644.1,3.782]
[1730895974520,5.044611,2644.6,2643.9,3.78229]
[1730895974521,8.826011,2644.6,2644.0,3.78214]
[1730895974733,5.044611,2644.6,2644.0,3.78214]
[1730895975021,12.38,2644.8,2644.4,3.78149]
[1730895975221,3.78107,2644.8,2644.3,0.8155]
[1730895976089,3.78073,2645.0,2644.3,4.59713]
[1730895976090,3.78089,2644.9,2644.3,4.59713]
[1730895976291,4.239293,2644.9,2644.3,4.59713]
[1730895976519,3.78101,2644.8,2644.3,4.59713]
[1730895976700,0.458403,2644.9,2644.4,3.78155]
[1730895976929,3.78087,2644.9,2644.3,4.59721]
[1730895977225,16.16072,2645.0,2644.3,0.8155]
[1730895977430,17.857122,2645.0,2644.3,0.8155]
[1730895977718,3.78102,2644.8,2644.3,0.8155]
[1730895978118,3.78123,2644.7,2644.3,0.8155]
[1730895978426,3.78133,2644.6,2644.3,0.8155]
[1730895978625,3.78144,2644.5,2644.3,0.8155]
[1730895978799,0.756277,2644.5,2644.3,0.8155]
[1730895978980,3.78127,2644.7,2644.3,0.8155]
[1730895979184,3.78101,2644.8,2644.3,4.59718]
[1730895979384,5.477212,2645.0,2644.4,3.78157]
[1730895979385,3.78086,2644.9,2644.4,3.78157]
[1730895979896,3.78086,2644.9,2644.3,4.59721]
[1730895980294,3.78086,2644.9,2644.4,3.78156]
[1730895980622,3.78086,2644.9,2644.3,4.59721]
[1730895980821,3.78086,2644.9,2644.3,8.37884]
[1730895981021,0.756167,2644.8,2644.3,4.59713]
[1730895981832,3.78138,2644.6,2644.0,4.53364]
[1730895982136,3.78114,2644.7,2644.1,3.78188]
[1730895982847,3.78129,2644.6,2644.1,3.78188]
[1730895983339,3.78154,2644.5,2644.0,0.7515]
[1730895983551,0.378129,2644.5,2644.1,3.78198]
[1730895983706,0.378129,2644.5,2643.8,0.7954]
[1730895984076,3.78181,2644.3,2643.8,0.7954]
[1730895984253,3.78154,2644.5,2643.9,3.78218]
[1730895984543,3.78157,2644.4,2643.9,3.78218]
[1730895986748,3.78157,2644.4,2643.9,3.78227]
[1730895987313,7.56324,2644.4,2643.9,3.78227]
[1730895987620,3.78157,2644.4,2643.9,3.78227]
[1730895987855,0.378157,2644.3,2643.9,3.78227]
[1730895988058,0.378157,2644.3,2644.0,3.78206]
[1730895988265,3.78139,2644.6,2644.0,3.78206]
[1730895988578,3.78137,2644.6,2644.0,3.78206]
[1730895989156,3.78137,2644.6,2644.1,3.78193]
[1730895989480,16.16115,2644.7,2644.1,3.78193]
[1730895989646,2.076375,2644.6,2644.1,3.7819]
[1730895989845,5.857695,2644.6,2644.1,3.7819]
[1730895990168,3.78144,2644.5,2644.0,3.78207]
[1730895990372,5.9833365,2644.5,2643.8,4.57781]
[1730895990551,4.55259,2644.4,2643.8,4.57781]
[1730895990759,3.78174,2644.3,2643.8,4.57781]
[1730895990966,1.43176665,2644.3,2643.8,4.57781]
[1730895991195,4.55248,2644.4,2643.9,3.78225]
[1730895991892,0.7709,2644.4,2643.9,3.78225]
[1730895992050,4.55249,2644.4,2643.9,3.78225]
[1730895992567,3.78159,2644.4,2643.9,3.78225]
[1730895993182,3.78139,2644.6,2644.0,3.78214]
[1730895993486,4.621002,2644.5,2643.9,3.78219]
[1730895993791,4.621002,2644.5,2643.9,3.78229]
[1730895994286,3.78158,2644.4,2643.9,3.78229]
[1730895994501,0.839492,2644.5,2643.9,3.78229]
[1730895994653,0.839492,2644.5,2644.1,3.78196]
[1730895994982,0.839492,2644.5,2644.2,3.78181]
[1730895995189,16.16108,2644.8,2644.2,4.58001]
[1730895995396,3.78116,2644.7,2644.2,4.58001]
[1730895995605,3.78108,2644.8,2644.2,4.57997]
[1730895995759,0.458048,2644.7,2644.2,4.57997]
[1730895995961,4.239278,2644.7,2644.2,4.57997]
[1730895996162,0.458048,2644.7,2644.2,4.57997]
[1730895996392,0.458048,2644.7,2644.2,8.36175]
[1730895996562,0.458048,2644.7,2644.2,4.57997]
[1730895996763,0.7994,2644.9,2644.3,3.78163]
[1730895997076,3.781,2644.8,2644.3,3.78163]
[1730895997475,3.781,2644.8,2644.3,7.56327]
[1730895997672,4.58027,2644.9,2644.3,7.56327]
[1730895998298,0.836109,2644.8,2644.4,3.78153]
[1730895998501,4.58027,2644.9,2644.4,3.78153]
[1730895998868,4.58027,2644.9,2644.3,3.78163]
[1730895999270,4.58027,2644.9,2644.3,7.56327]
[1730895999601,3.78087,2644.9,2644.4,3.78156]
[1730896000792,3.78079,2645.0,2644.4,3.78156]
[1730896001100,0.7615,2645.1,2644.2,0.7982]
[1730896001308,0.7615,2645.1,2644.7,3.78112]
[1730896001517,0.7615,2645.1,2644.6,3.78118]
[1730896002768,4.54209,2645.1,2644.6,3.78118]
[1730896002989,3.78078,2645.0,2644.4,7.56291]
[1730896003209,3.78103,2644.8,2644.2,0.7982]
[1730896003425,3.78103,2644.8,2644.2,8.36176]
[1730896003724,3.78103,2644.8,2644.3,3.7817]
[1730896003922,7.56165,2645.0,2644.4,3.78153]
[1730896004101,4.67179164,2644.9,2644.4,3.78153]
[1730896004298,3.78111,2644.8,2644.3,3.78163]
[1730896004824,7.56222,2644.8,2644.3,3.78163]
[1730896005026,3.78111,2644.8,2644.3,3.78163]
[1730896006525,4.62639416,2644.8,2644.3,3.78163]
[1730896006926,0.84528416,2644.8,2644.4,3.78156]
[1730896007232,4.62634416,2644.8,2644.3,3.78163]
[1730896007525,3.78122,2644.7,2644.2,0.7982]
[1730896007733,3.78132,2644.6,2644.2,0.7982]
[1730896007935,3.78132,2644.6,2643.9,3.78219]
[1730896007936,3.78157,2644.5,2643.9,3.78219]
[1730896008232,3.78143,2644.5,2643.9,3.78218]
[1730896008393,0.7991,2644.7,2644.0,3.78214]
[1730896008595,3.78138,2644.6,2644.0,7.56421]
[1730896009625,4.58038,2644.7,2644.2,3.78183]
[1730896009833,0.7991,2644.7,2644.2,3.78179]
[1730896010005,0.7991,2644.7,2644.4,3.78154]
[1730896010330,3.78094,2644.9,2644.4,3.78154]
[1730896010710,3.78094,2644.9,2644.3,4.58304]
[1730896010911,7.56192,2644.9,2644.3,4.58304]
[1730896011113,7.56192,2644.9,2644.3,0.8014]
[1730896011114,3.78094,2644.9,2644.3,0.8014]
[1730896011333,0.459524,2644.8,2644.3,4.58305]
[1730896011633,3.78115,2644.7,2644.3,0.8014]
[1730896012207,0.459524,2644.8,2644.3,0.8014]
[1730896012414,0.459524,2644.8,2644.4,3.78151]
[1730896012917,4.240584,2644.8,2644.3,4.58311]
[1730896013538,4.240584,2644.8,2644.3,0.8014]
[1730896013746,0.8021524,2644.7,2644.3,0.8014]
[1730896013901,4.240584,2644.8,2644.3,0.8014]
[1730896014101,4.240584,2644.8,2644.3,4.58308]
[1730896014404,4.240584,2644.8,2644.3,0.8014]
[1730896014405,8.021694,2644.8,2644.3,0.8014]
[1730896014605,0.8021694,2644.7,2644.3,0.8014]
[1730896015138,0.8021694,2644.7,2644.3,4.5831]
[1730896015636,0.8021694,2644.7,2644.3,0.8014]
[1730896016331,0.8143,2645.0,2644.5,3.78133]
[1730896016637,16.16058,2645.1,2644.6,3.78121]
[1730896016840,3.78088,2644.9,2644.3,0.8014]
[1730896017137,3.78073,2645.0,2644.5,3.78135]
[1730896017434,5.09794,2645.1,2644.5,3.78135]
[1730896017602,3.78057,2645.1,2644.6,3.78127]
[1730896018040,3.78057,2645.1,2644.5,3.78135]
[1730896018341,3.78057,2645.1,2644.5,7.56271]
[1730896018539,3.78057,2645.1,2644.5,3.78135]
[1730896019074,3.78057,2645.1,2644.5,7.56271]
[1730896019279,4.57414,2645.2,2644.6,3.78126]
[1730896019439,0.457408,2645.1,2644.6,3.78126]
[1730896020481,4.237978,2645.1,2644.4,3.78157]
[1730896020682,4.237978,2645.1,2644.5,3.78141]
[1730896020989,4.237978,2645.1,2644.5,7.56282]
[1730896021576,0.457408,2645.1,2644.5,3.78141]
[1730896022188,4.238038,2645.1,2644.5,3.78141]
[1730896022343,0.457408,2645.1,2644.6,3.78124]
[1730896022546,0.457408,2645.1,2644.7,3.78112]
[1730896022798,0.457408,2645.1,2644.7,3.78106]
[1730896023238,0.7937,2645.2,2644.7,3.78106]
[1730896023655,12.38,2645.4,2644.8,3.78099]
[1730896023870,14.12432519,2645.5,2644.8,3.78099]
[1730896024056,3.78015,2645.4,2644.7,3.78114]
[1730896024581,3.78015,2645.4,2644.8,3.78095]
[1730896024745,6.80859752,2645.4,2644.8,3.78095]
[1730896024944,6.80859752,2645.4,2644.8,3.78089]
[1730896025483,6.80858752,2645.4,2644.7,3.78114]
[1730896025662,6.80858752,2645.4,2644.7,7.56212]
[1730896025987,3.02844752,2645.4,2644.8,3.78092]
[1730896026479,6.80858752,2645.4,2644.8,3.78092]
[1730896026692,0.63822372,2645.3,2644.8,3.78092]
[1730896027250,4.41852372,2645.3,2644.7,3.78113]
[1730896028272,0.63822372,2645.3,2644.8,3.78099]
[1730896028471,0.63822372,2645.3,2644.6,8.37335]
[1730896028684,1.98268112,2645.2,2644.6,0.811]
[1730896028884,1.98268112,2645.2,2644.8,3.78091]
[1730896029111,1.98268112,2645.2,2644.7,3.78114]
[1730896029407,1.98268112,2645.2,2644.8,3.78099]
[1730896030722,1.98268112,2645.2,2644.8,3.78093]
[1730896030872,0.63822372,2645.3,2644.8,3.78093]
[1730896032908,0.63822372,2645.3,2644.6,0.811]
[1730896033112,4.41851372,2645.3,2644.7,3.78113]
[1730896033484,0.63822372,2645.3,2644.7,7.56216]
[1730896034581,0.63822372,2645.3,2644.8,3.78098]
[1730896036826,0.63822372,2645.3,2644.9,3.78083]
[1730896039039,0.63822372,2645.3,2644.8,3.78098]
[1730896039407,1.3048,2645.7,2645.3,3.78028]
[1730896040532,1.3048,2645.7,2645.4,3.78001]
[1730896040729,1.3048,2645.7,2645.4,3.78007]
[1730896041057,0.7548,2645.7,2645.4,3.78007]
[1730896041335,0.55,2645.6,2645.5,4.5596]
[1730896042511,0.55,2646.6,2645.5,4.5695]
[1730896042718,5.299913,2647.4,2646.3,3.77875]
[1730896042719,4.54413,2647.0,2646.3,3.77875]
[1730896042929,4.54413,2647.0,2646.4,3.77871]
[1730896042930,0.454413,2646.9,2646.4,3.77871]
[1730896043236,0.454413,2646.9,2646.5,3.77848]
[1730896043439,0.7662,2647.0,2646.1,5.08902699]
[1730896043651,0.7662,2647.0,2646.7,3.77817]
[1730896043801,0.7662,2647.0,2646.8,3.77813]
[1730896044003,0.7662,2647.0,2646.5,3.77847]
[1730896044316,0.7662,2647.0,2646.7,3.77828]
[1730896044855,0.7662,2647.0,2646.7,7.55656]
[1730896045006,0.7662,2647.0,2646.7,3.77828]
[1730896045205,0.7662,2647.0,2646.7,3.77821]
[1730896045730,0.7662,2647.0,2646.7,7.55641]
[1730896046118,10.31963519,2647.4,2646.8,4.60543]
[1730896046457,1.84991352,2647.3,2646.8,4.60543]
[1730896046751,5.62734352,2647.3,2646.6,3.77833]
[1730896046943,3.77764,2647.2,2646.6,3.77833]
[1730896047249,3.7778,2647.1,2646.6,3.77833]
[1730896047420,0.7929,2647.0,2646.6,3.77833]
[1730896048671,0.8304,2646.4,2645.5,0.7967]
[1730896048871,4.60991,2645.9,2645.4,3.78006]
[1730896049173,0.8304,2645.9,2645.4,3.78006]
[1730896049836,0.8304,2645.9,2645.2,9.27332969]
[1730896050062,3.77993,2645.6,2645.0,7.5612]
[1730896050256,3.77993,2645.6,2645.0,3.7806]
[1730896050471,3.78002,2645.5,2645.0,3.7806]
[1730896050952,3.78051,2645.2,2644.6,3.78118]
[1730896051732,4.56381,2645.4,2644.6,3.78118]
[1730896051939,4.56381,2645.4,2644.9,3.78083]
[1730896052530,4.56381,2645.4,2644.9,3.78077]
[1730896052741,8.34407,2645.4,2644.9,3.78077]
[1730896052939,4.56381,2645.4,2644.9,3.78077]
[1730896053141,0.7836,2645.4,2644.9,3.78077]
[1730896053373,4.56383,2645.4,2644.9,3.78077]
[1730896053569,5.398214,2645.4,2644.9,3.78077]
[1730896053769,5.398214,2645.4,2644.7,3.78102]
[1730896054076,0.7836,2645.4,2644.7,3.78114]
[1730896054384,8.3375,2645.7,2644.9,4.57323]
[1730896054544,4.55765,2645.7,2644.9,8.35394]
[1730896054747,0.7779,2645.7,2644.9,0.7925]
[1730896054951,3.78,2645.5,2644.2,0.8273]
[1730896055271,3.78122,2644.7,2644.1,3.7819]
[1730896055440,3.78122,2644.7,2644.1,7.56382]
[1730896055634,4.54018,2644.8,2644.1,3.7819]
[1730896055970,0.7591,2644.8,2644.3,3.78168]
[1730896056176,0.7591,2644.8,2644.3,4.159848]
[1730896057381,0.7591,2644.8,2644.3,7.941478]
[1730896057951,0.7591,2644.8,2644.3,4.159798]
[1730896058158,0.7591,2644.8,2644.3,4.159788]
[1730896058471,4.54011,2644.8,2644.3,3.78162]
[1730896059679,0.83,2645.2,2644.8,3.78099]
[1730896060676,3.78087,2644.9,2644.4,0.8304]
[1730896060841,0.8025,2645.0,2644.0,3.78204]
[1730896061037,0.8025,2645.0,2643.8,4.56233]
[1730896061038,3.78144,2644.5,2643.8,4.56233]
[1730896061239,3.78194,2644.2,2643.6,3.78263]
[1730896061437,3.78211,2644.1,2643.4,3.78292]
[1730896061693,3.78218,2644.0,2643.4,7.56585]
[1730896061987,3.78208,2644.1,2643.5,3.78283]
[1730896062283,3.78222,2644.0,2643.5,3.78283]
[1730896063554,3.78222,2644.0,2643.3,3.78306]
[1730896063893,4.57857,2643.9,2643.3,3.78307]
[1730896064181,4.57857,2643.9,2643.3,7.56614]
[1730896064380,4.57857,2643.9,2643.3,4.621364]
[1730896064580,4.57857,2643.9,2643.3,8.404434]
[1730896064788,0.7962,2643.9,2643.4,3.78299]
[1730896065456,0.7962,2643.9,2643.3,4.621364]
[1730896065656,3.78245,2643.8,2643.1,0.8168]
[1730896065870,3.78258,2643.7,2643.1,4.6001]
[1730896066276,3.78273,2643.6,2643.1,4.6001]
[1730896066486,3.78257,2643.7,2643.1,4.6001]
[1730896066798,3.78243,2643.8,2643.2,3.78328]
[1730896067500,3.78274,2643.6,2643.1,4.6001]
[1730896067675,12.38,2644.0,2643.7,4.5835]
[1730896067878,3.78189,2644.2,2643.7,0.801]
[1730896068084,4.57674,2644.3,2643.7,0.801]
[1730896068411,4.57674,2644.3,2643.7,4.58357]
[1730896068412,10.054244,2644.3,2643.7,4.58357]
[1730896068560,6.272404,2644.3,2643.7,4.58357]
[1730896069005,0.7949,2644.3,2643.9,3.78215]
[1730896069208,16.16143,2644.5,2644.0,3.78204]
[1730896069370,10.32573519,2644.6,2644.1,3.7819]
[1730896069566,9.51863519,2644.6,2644.2,4.15995]
[1730896069813,9.51863519,2644.6,2644.2,3.78176]
[1730896070104,9.51863519,2644.6,2643.9,8.05151699]
[1730896070271,9.51863519,2644.6,2643.7,0.801]
[1730896070272,3.78151,2644.5,2643.7,0.801]
[1730896070467,3.78151,2644.5,2643.9,3.78219]
[1730896070778,0.7837,2644.4,2643.8,3.78243]
[1730896070987,14.08362519,2644.6,2644.1,3.78199]
[1730896071291,0.7837,2644.6,2644.1,3.78188]
[1730896071492,0.7837,2644.6,2644.1,4.58487072]
[1730896071672,0.7837,2644.6,2644.0,3.78212]
[1730896071871,3.78144,2644.5,2644.0,3.78212]
[1730896074183,4.56499,2644.6,2644.0,3.78212]
[1730896075422,0.7837,2644.6,2644.1,3.78191]
[1730896075625,4.56501,2644.6,2644.0,3.78212]
[1730896075996,4.56501,2644.6,2644.0,7.56419]
[1730896076828,4.56501,2644.6,2644.0,3.78207]
[1730896077031,1.618318,2644.6,2643.7,0.801]
[1730896077321,0.7837,2644.6,2644.1,3.78189]
[1730896077488,0.7837,2644.6,2644.1,7.56381]
[1730896077914,0.7837,2644.6,2644.1,3.78189]
[1730896078115,4.565,2644.6,2643.9,7.56434]
[1730896078317,4.565,2644.6,2643.9,8.44557634]
[1730896078518,0.7837,2644.6,2644.1,3.78199]
[1730896078839,1.31825,2644.9,2644.2,0.27990222]
[1730896078991,13.29929519,2645.1,2644.6,3.78127]
[1730896079185,13.29929519,2645.1,2644.3,1.07080222]
[1730896079186,12.01100271,2645.1,2644.8,3.78099]
[1730896079534,10.30303519,2645.1,2644.8,3.78097]
[1730896080325,9.51863519,2645.1,2644.9,0.28005039]
[1730896080493,9.51863519,2645.1,2645.0,0.28005039]
[1730896080689,1.82463519,2645.1,2645.0,0.28005039]
[1730896080892,3.78029,2645.3,2645.0,0.28005039]
[1730896081192,16.91507,2645.4,2645.1,0.28005039]
[1730896081389,16.91507,2645.4,2644.8,1.25719351]
[1730896081390,16.91503,2645.4,2644.8,1.25719351]
[1730896081631,3.78051,2645.2,2644.9,0.27994719]
[1730896081812,3.78051,2645.2,2644.6,5.00907351]
[1730896082013,3.78051,2645.2,2644.7,0.28004179]
[1730896082416,3.78051,2645.2,2644.8,0.28004179]
[1730896082629,4.59341,2645.0,2644.9,0.28004179]
[1730896082926,4.59341,2645.0,2644.9,0.28007901]
[1730896083130,3.78086,2644.9,2644.6,0.28007901]
[1730896083292,3.78086,2644.9,2644.3,4.55428]
[1730896083490,3.78086,2644.9,2644.4,0.28024865]
[1730896083721,3.78107,2644.8,2644.5,0.28024865]
[1730896083903,0.378107,2644.7,2644.4,3.7815]
[1730896084111,3.78086,2644.9,2644.5,0.28027782]
[1730896084324,3.78086,2644.9,2644.6,0.28027782]
[1730896084628,7.56219,2644.8,2644.2,3.78175]
[1730896084924,0.837436,2644.9,2644.4,3.7815]
[1730896085231,4.5935,2645.0,2644.5,0.28034855]
[1730896085928,3.78094,2644.9,2644.4,0.28034855]
[1730896086140,4.5935,2645.0,2644.4,3.78149]